[Event "10th Iberoamericano-ch 2024"]
[Site "Linares"]
[Date "2024.10.01"]
[Round "9.1"]
[White "Pichot, Alan"]
[Black "Garcia Ramos, Daniel"]
[Result "1-0"]
[Annotator "TA"]
[ECO "B12"]
[WhiteElo "2644"]
[BlackElo "2410"]
[PlyCount "59"]
[EventDate "2024.09.25"]
[EventType "swiss"]
[EventCountry "ESP"]
[SourceTitle "playchess.com"]
[Source "ChessBase"]
[SourceQuality "1"]
[TimeControl "5400+30"]

{[%evp 9,59,15,28,15,36,21,39,19,29,1,22,34,33,32,33,35,33,38,46,36,66,30,24,16,34,22,21,0,2,11,39,21,25,14,15,0,70,38,87,80,120,112,193,179,229,210,451,424,454,442,433,424]} 1. e4 {[%emt 0:00:22]} c6 {[%emt 0:02:40]} 2. d4 {[%emt 0:00:13]} d5 {[%emt 0:00:10]} 3. e5 {[%emt 0:00:06]} Bf5 {[%emt 0:00:20]} 4. Nf3 {[%emt 0:00:11]} e6 {[%emt 0:00:08]} 5. c3 {[%emt 0:00:15]} Nd7 {[%emt 0:03:28]} 6. Be2 {[%emt 0:00:14]} a5 {[%emt 0:13:00][%cal Ba7a5,Ba5a4][%mdl 32]} 7. Nbd2 {[%emt 0:00:24][%cal Bb1d2,Bd2f1,Bf1g3,Bg3f5][%mdl 32]} a4 {[%emt 0:01:18]} 8. Nf1 {[%emt 0:00:17] White is slightly better.} Ne7 {[%emt 0:01:52]} 9. Ng3 {[%emt 0:00:20]} Bg4 {[%emt 0:04:07]} 10. O-O {[%emt 0:05:52]} Nf5 {[%emt 0:21:56]} 11. Ng5 {[%emt 0:07:07]} Bxe2 {[%emt 0:02:05]} 12. Qxe2 {[%emt 0:01:29]} h6 {[%emt 0:02:37] [#] And now ...Nxg3 would win.} 13. Nxf5 {[%emt 0:13:14][%cal Og5e6] Threatens to win with Nxe6!} hxg5 {[%emt 0:00:13]} 14. Ng3 {[%emt 0:00:08]} g6 {[%emt 0:07:44]} 15. Qg4 {[%emt 0:10:13]} Be7 {[%emt 0:00:26]} 16. f4 {[%emt 0:00:13]} Rh4 {[%emt 0:02:34]} 17. Qf3 {[%emt 0:01:11]} Qb6 {[%emt 0:05:15]} 18. Qf2 {[%emt 0:14:03]} gxf4 {[%emt 0:02:13]} 19. Bxf4 {[%emt 0:00:19][%cal Of4g5]} O-O-O {[%emt 0:00:06]} 20. Be3 {[%emt 0:06:15]} Rh7 {[%emt 0:03:44]} 21. Qe2 {[%emt 0:02:01]} Rdh8 {[%emt 0:05:59][%cal Ob6d8]} 22. h3 {[%emt 0:00:19]} Qc7 {[%emt 0:05:34]} (22... g5 $11) 23. Rf3 $14 {[%emt 0:04:32] White is more active.} Bh4 {[%emt 0:02:41]} (23... f5 $14 {is superior.}) 24. Nf1 $16 {[%emt 0:08:04]} Bd8 {[%emt 0:05:08]} 25. Nh2 {[%emt 0:00:49]} f5 {[%emt 0:02:34]} (25... a3 $16 {was necessary.}) 26. exf6 $18 {[%emt 0:00:18]} Nxf6 {[%emt 0:00:11]} (26... Bxf6 $142 27. Ng4 Bd8) 27. Bf4 {[%emt 0:01:41]} Qf7 {[%emt 0:04:44] [#]} (27... Qb6 {was worth a try.} 28. Be5 (28. Qxe6+ Nd7 $18) 28... Ne4 29. Bxh8 Rxh8) 28. Be5 {[%emt 0:02:48] White is clearly winning.} Rh5 {[%emt 0:00:53]} 29. Raf1 {[%emt 0:00:42][%cal Re5f6]} Rf5 {[%emt 0:00:46]} 30. g4 {[%emt 0:00:07] Weighted Error Value: White=0.09 (flawless) /Black=0.29 (precise) .  Mistake:       	---       	Black=5      Inaccurate:     	White=2     	Black=3      OK:         	White=10    	Black=8      Best:        	White=1     	Black=2} 1-0

[Event "10th Iberoamericano-ch 2024"]
[Site "Linares"]
[Date "2024.10.01"]
[Round "9.2"]
[White "Flores Quillas, Diego Saul Rodri"]
[Black "Quesada Perez, Luis Ernesto"]
[Result "1/2-1/2"]
[Annotator "TA"]
[ECO "C41"]
[WhiteElo "2454"]
[BlackElo "2581"]
[PlyCount "86"]
[EventDate "2024.09.25"]
[EventType "swiss"]
[EventCountry "ESP"]
[SourceTitle "playchess.com"]
[Source "ChessBase"]
[SourceQuality "1"]
[TimeControl "5400+30"]

{[%evp 15,86,29,35,26,20,17,22,25,35,14,15,18,6,14,37,4,16,4,26,15,35,0,26,0,20,-12,-6,0,0,0,0,0,0,0,0,0,0,0,0,0,0,0,0,0,0,0,0,0,0,0,0,0,0,0,0,0,0,0,0,0,0,-2,-2,-2,-8,-8,-8,-8,0,0,0,0,0]} 1. e4 {[%emt 0:12:55]} d6 {[%emt 0:00:03]} 2. d4 {[%emt 0:00:14]} Nf6 {[%emt 0:00:06]} 3. Nc3 {[%emt 0:00:04]} e5 {[%emt 0:00:04]} 4. Nf3 {[%emt 0:00:05]} Nbd7 {[%emt 0:00:05]} 5. Bc4 {[%emt 0:00:04]} Be7 {[%emt 0:00:05]} 6. O-O {[%emt 0:00:20]} O-O {[%emt 0:00:06]} 7. h3 {[%emt 0:00:59]} c6 {[%emt 0:02:09]} 8. a4 {[%emt 0:00:09][%cal Ba2a4,Ba4a5,Ba5a6][%mdl 32]} h6 {[%emt 0:00:06]} 9. Ba2 {[%emt 0:02:46]} Re8 {[%emt 0:00:12]} 10. Re1 {[%emt 0:00:14]} exd4 {[%emt 0:01:03]} 11. Nxd4 {[%emt 0:01:04][%cal Oa4a5]} Bf8 {[%emt 0:00:30] [#]} 12. a5 $1 {[%emt 0:04:09]} Nc5 {[%emt 0:29:13]} 13. f3 {[%emt 0:05:09]} Ne6 {[%emt 0:10:19]} 14. Be3 {[%emt 0:01:53]} Nxd4 {[%emt 0:00:15]} 15. Qxd4 {[%emt 0:00:33]} Be6 {[%emt 0:00:06] [#]} 16. a6 $1 {[%emt 0:05:04]} b5 {[%emt 0:01:22]} (16... b6 17. Bxe6) 17. Bxe6 {[%emt 0:00:19]} Rxe6 {[%emt 0:00:02]} 18. Qd2 {[%emt 0:01:13]} Qc7 {[%emt 0:04:26]} 19. Ne2 {[%emt 0:12:11]} Ree8 {[%emt 0:04:02] The position is equal.} 20. Nf4 {[%emt 0:05:57] [#]} d5 $1 {[%emt 0:00:57]} 21. exd5 {[%emt 0:17:17]} Red8 {[%emt 0:03:12]} 22. Rad1 {[%emt 0:05:11]} Nxd5 {[%emt 0:00:21]} 23. Nxd5 {[%emt 0:00:03]} Rxd5 {[%emt 0:00:09]} 24. Qf2 {[%emt 0:00:07]} Rxd1 {[%emt 0:01:04]} 25. Rxd1 {[%emt 0:00:05]} c5 {[%emt 0:00:54]} 26. Qd2 {[%emt 0:01:59]} Qb6 {[%emt 0:09:20]} 27. Qd5 {[%emt 0:02:55]} Re8 {[%emt 0:00:06]} 28. Bf2 {[%emt 0:00:43] And now Qd7 would win.} Qxa6 {[%emt 0:05:38]} 29. Bxc5 {[%emt 0:00:08]} Bxc5+ {[%emt 0:01:47]} 30. Qxc5 $11 {[%emt 0:00:03][%mdl 4096] Endgame. KQR-KQR} Rc8 {[%emt 0:00:07]} 31. Qf5 {[%emt 0:01:51]} g6 {[%emt 0:00:48]} 32. Qf4 {[%emt 0:04:10]} h5 {[%emt 0:08:29]} (32... Rxc2 $2 {perishes.} 33. Rd8+ Kg7 34. Qe5+ Qf6 35. Rg8+ (35. Qxb5 $2 {too greedy.} Qxd8 36. Qe5+ Qf6 $19) 35... Kxg8 36. Qxf6 $18) 33. c3 {[%emt 0:02:24]} Qe6 {[%emt 0:01:48]} 34. h4 {[%emt 0:01:10]} a5 {[%emt 0:00:48]} 35. Kh2 {[%emt 0:01:23]} Qe7 {[%emt 0:00:43]} 36. Rd4 {[%emt 0:01:09]} Kg7 {[%emt 0:02:29]} 37. Rd5 {[%emt 0:00:56]} Rc4 {[%emt 0:00:49]} 38. Qe5+ {[%emt 0:01:34]} Qxe5+ {[%emt 0:00:58]} 39. Rxe5 {[%emt 0:00:03]} b4 {[%emt 0:00:20]} 40. Rxa5 {[%emt 0:00:35]} bxc3 {[%emt 0:00:06]} 41. bxc3 {[%emt 0:00:03]} Rxc3 {[%emt 0:08:08]} 42. Ra4 {[%emt 0:00:18]} Kf6 {[%emt 0:00:25]} 43. Kg3 {[%emt 0:00:13]} Ke5 {An interesting draw.   Weighted Error Value: White=0.05 (flawless) /Black=0.04 (flawless) .  Inaccurate:     	White=4     	Black=1      OK:         	White=14    	Black=18     Best:        	White=2     	---} 1/2-1/2

[Event "10th Iberoamericano-ch 2024"]
[Site "Linares"]
[Date "2024.10.01"]
[Round "9.3"]
[White "Fier, Alexandr"]
[Black "Fernandez Guillen, Ernesto J."]
[Result "1-0"]
[Annotator "TA"]
[ECO "E98"]
[WhiteElo "2539"]
[BlackElo "2461"]
[PlyCount "77"]
[EventDate "2024.09.25"]
[EventType "swiss"]
[EventCountry "ESP"]
[SourceTitle "playchess.com"]
[Source "ChessBase"]
[SourceQuality "1"]
[TimeControl "5400+30"]

{[%evp 27,77,63,56,37,62,63,68,45,108,163,144,144,147,131,148,132,128,114,139,124,116,108,125,126,120,104,213,235,397,393,393,369,404,406,392,389,606,618,650,629,911,744,1052,1070,1127,1110,1006,735,29982,29983,29992,29993]} 1. c4 {[%emt 0:00:03]} Nf6 {[%emt 0:01:51]} 2. Nc3 {[%emt 0:00:05]} g6 {[%emt 0:01:14]} 3. Nf3 {[%emt 0:01:11]} Bg7 {[%emt 0:00:12]} 4. e4 {[%emt 0:00:05]} d6 {[%emt 0:00:05]} 5. d4 {[%emt 0:00:04][%cal Bd2d4,Bd4d5][%mdl 32]} O-O {[%emt 0:00:05]} 6. Be2 {[%emt 0:00:02]} e5 {[%emt 0:00:10]} 7. O-O {[%emt 0:00:03]} Nc6 {[%emt 0:00:04]} 8. d5 {[%emt 0:08:27]} Ne7 {[%emt 0:00:46]} 9. Ne1 {[%emt 0:00:03]} Ne8 {[%emt 0:01:28]} 10. Nd3 {[%emt 0:04:03]} f5 {[%emt 0:03:18]} 11. Bd2 {[%emt 0:00:04]} Nf6 {[%emt 0:07:51]} 12. f3 {[%emt 0:00:04]} f4 {[%emt 0:00:03]} 13. c5 {[%emt 0:00:03][%cal Bc4c5,Bc5d6,Bd6c7][%mdl 32]} g5 {[%emt 0:00:17]} 14. Rc1 {[%emt 0:00:49]} Ng6 {[%emt 0:00:16]} 15. Nb5 {[%emt 0:07:07]} Rf7 {[%emt 0:01:19][%cal Og5g4]} 16. Ba5 {[%emt 0:00:28] [#] Hoping for cxd6.} b6 $1 {[%emt 0:00:34]} 17. cxd6 $1 {[%emt 0:00:03] White is slightly better.} bxa5 {[%emt 0:02:13]} (17... cxd6 $14 18. Be1 g4) 18. dxc7 $16 {[%emt 0:02:53]} Qf8 {[%emt 0:04:45]} 19. Nc5 {[%emt 0:00:05] aiming for Ne6.} a6 {[%emt 0:01:39]} 20. Ne6 {[%emt 0:00:13]} Qe7 {[%emt 0:24:46]} 21. Nxg7 {[%emt 0:00:06]} Kxg7 {[%emt 0:10:55]} 22. d6 {[%emt 0:00:38]} Qf8 {[%emt 0:00:05] [#]} 23. Na3 {[%emt 0:01:12][%cal Bb5a3,Ba3c4,Bc4b6,Bb6d5,Bd5e7][%mdl 1056] White has strong compensation.} Ra7 {[%emt 0:00:06]} 24. Rc6 $36 {[%emt 0:02:58][%mdl 2048] White has strong initiative.} Rd7 {[%emt 0:10:57]} 25. Nc4 {[%emt 0:05:08][%cal Od1b3] Strongly threatening Qb3!} Ne8 {[%emt 0:02:48][%cal Ra7c7,Bf6e8,Be8c7,Bc7e6][%mdl 32]} 26. Qc1 {[%emt 0:00:03] Rd1 would now be deadly. White has more active pieces. The black rooks are passive.} (26. Nxa5 Rxd6 (26... Nxd6 $2 27. Qc2 $19) 27. Rxd6 Nxd6 $17 (27... Qxd6 $2 28. Qxd6 Nxd6 29. Rc1 $19)) 26... Qf6 {[%emt 0:22:58]} (26... Nxd6 $16 27. Nb6 (27. Nxa5 $2 Nb5 $19) 27... Rf7) 27. Rd1 $1 $18 {[%emt 0:03:06][%cal Oc4b6] And now Nb6! would win.} (27. Nxa5 $2 Rxd6 28. Rc3 Qf7 $19) 27... Raxc7 $2 {[%emt 0:01:18]} (27... Ne7 {keeps fighting.} 28. Rb6 (28. dxe7 $2 Qxc6 29. g3 Raxc7 $19) 28... Rb7) 28. Rxc7 {[%emt 0:00:18]} Nxc7 {[%emt 0:00:06]} 29. Nb6 {[%emt 0:00:08][%cal Ob6d7]} (29. dxc7 Rxc7 30. Qd2 g4 $16) 29... Ne6 {[%emt 0:02:00]} 30. Qxc8 {[%emt 0:03:03] Black is weak on the light squares} (30. Nxc8 Nd4 31. Bxa6 g4 $16) 30... Rd8 {[%emt 0:00:01]} 31. Qb7+ {[%emt 0:00:06]} (31. Qxa6 Nd4 $18) 31... Kh6 {[%emt 0:00:50]} (31... Kh8 $142 32. Nd5 (32. Qxa6 Nd4 $18) (32. Bxa6 g4 $18) 32... Qg7) 32. Nd5 {[%emt 0:00:04]} (32. Qxa6 Nd4 33. Nd5 Qxd6 $14) (32. Bxa6 Nc5 33. Qa7 Nxa6 $11) 32... Qg7 {[%emt 0:00:15]} 33. Ne7 {[%emt 0:00:59]} ({Not} 33. Bxa6 Qxb7 34. Bxb7 Nc5 $18) 33... Nh4 {[%emt 0:01:10]} 34. Qb6 {[%emt 0:04:40]} Rd7 {[%emt 0:00:31]} 35. Qc6 {[%emt 0:00:07]} Rd8 {[%emt 0:00:22]} 36. g3 {[%emt 0:04:50][%cal Bg2g3,Bg3h4][%mdl 32]} g4 {[%emt 0:00:33]} 37. fxg4 {[%emt 0:00:05]} (37. gxh4 {is a self mate.} gxf3+) 37... Nd4 {[%emt 0:00:30]} 38. Rxd4 {[%emt 0:00:12]} exd4 {[%emt 0:00:11]} 39. gxh4 {[%emt 0:00:20] Black got outplayed after the opening.   Weighted Error Value: White=0.08 (flawless) /Black=0.49.  Mistake:       	---       	Black=4      OK:         	White=5     	Black=6      Best:        	White=6     	Black=2      Strong:       	White=2     	Black=1} 1-0

[Event "10th Iberoamericano-ch 2024"]
[Site "Linares"]
[Date "2024.10.01"]
[Round "9.4"]
[White "Avila Pavas, Santiago"]
[Black "Garrido Outon, Alex"]
[Result "1-0"]
[Annotator "TA"]
[ECO "D02"]
[WhiteElo "2501"]
[BlackElo "2448"]
[PlyCount "77"]
[EventDate "2024.09.25"]
[EventType "swiss"]
[EventCountry "ESP"]
[SourceTitle "playchess.com"]
[Source "ChessBase"]
[SourceQuality "1"]
[TimeControl "5400+30"]

{[%evp 9,77,11,8,5,11,-6,18,9,9,0,0,0,0,-9,9,8,43,41,137,132,221,212,354,327,389,251,262,189,216,195,191,191,240,196,205,198,210,207,204,207,235,235,263,273,385,370,368,382,372,325,456,361,354,337,364,339,573,1052,1052,932,5547,5085,12848,6047,29982,6658,29985,29984,29984,29985]} 1. d4 {[%emt 0:03:30]} d5 {[%emt 0:00:27]} 2. Nf3 {[%emt 0:00:04]} Nf6 {[%emt 0:00:08]} 3. Bf4 {[%emt 0:00:05]} e6 {[%emt 0:00:09]} 4. e3 {[%emt 0:00:04]} Bd6 {[%emt 0:00:09]} 5. Nbd2 {[%emt 0:00:09]} O-O {[%emt 0:00:59]} 6. Bd3 {[%emt 0:10:16]} b6 {[%emt 0:01:57]} 7. Ne5 {[%emt 0:00:08]} Ba6 {[%emt 0:10:58]} 8. Bxa6 {[%emt 0:01:14] The position is equal.} Nxa6 {[%emt 0:01:26]} 9. h4 {[%emt 0:00:05][%cal Bh2h4,Bh4h5,Bh5h6][%mdl 32]} c5 {[%emt 0:15:40]} 10. h5 {[%emt 0:40:05]} Qc7 {[%emt 0:03:42]} 11. c3 {[%emt 0:06:02] Repels Nb4} Nb8 {[%emt 0:04:57]} 12. Qf3 {[%emt 0:00:35]} Nfd7 {[%emt 0:07:32]} (12... cxd4 {simplifies} 13. exd4 Nfd7 14. Nxd7 Nxd7 15. Bxd6 Qxd6 16. h6 g6) 13. Qg3 {[%emt 0:13:26] h6 is the strong threat.} f6 {[%emt 0:11:40] [#] White leaves nothing to chance now.} ({Better is} 13... Bxe5 $14 14. dxe5 c4) 14. h6 $1 $16 {[%emt 0:11:49][%csl Gh6][%cal Rg3g7] White is much more active.} g5 {[%emt 0:15:22]} (14... Nxe5 $16 15. dxe5 fxe5 16. hxg7 Re8) 15. Ndf3 $18 {[%emt 0:03:48][%cal Of3g5] Black must now prevent Nxg5!} Nxe5 {[%emt 0:09:24]} (15... Kh8 $142) 16. dxe5 {[%emt 0:00:15]} fxe5 {[%emt 0:00:04]} 17. Qxg5+ {[%emt 0:00:52]} Kh8 {[%emt 0:00:05]} 18. Bxe5+ {[%emt 0:01:02]} ({But not} 18. Nxe5 $6 Rf5 19. Qh4 (19. Qg7+ Qxg7 20. hxg7+ Kxg7 $16) 19... Nc6 $16 (19... Bxe5 $2 20. Bxe5+ Rxe5 21. Qf6+ Kg8 22. Rh4 $18)) 18... Bxe5 {[%emt 0:00:06]} 19. Qxe5+ {[%emt 0:00:13]} Qxe5 {[%emt 0:00:06]} 20. Nxe5 {[%emt 0:00:02]} a5 {[%emt 0:02:19] Black is weak on the dark squares} (20... c4 $142 21. f4 Na6) 21. Ke2 {[%emt 0:00:42]} Ra7 {[%emt 0:00:09]} 22. Rad1 {[%emt 0:01:03]} Nd7 {[%emt 0:00:32]} 23. Nxd7 {[%emt 0:01:11]} Rxd7 {[%emt 0:00:01][%mdl 4096] Endgame. KRR-KRR} 24. Rh5 {[%emt 0:00:16]} b5 {[%emt 0:02:37]} 25. f4 {[%emt 0:00:44]} c4 {[%emt 0:04:13]} 26. g4 {[%emt 0:00:03][%cal Bg2g4,Bg4g5][%mdl 32]} b4 {[%emt 0:00:13]} (26... Rf6 {might work better.} 27. a3 Rd8) 27. Re5 {[%emt 0:00:05]} Rd6 {[%emt 0:00:57]} 28. g5 {[%emt 0:00:58]} Kg8 {[%emt 0:03:42]} 29. Kf3 {[%emt 0:01:13]} Rf5 {[%emt 0:01:26]} (29... Kf7 {was called for.} 30. Kg4 Rc8) 30. Rd4 {[%emt 0:01:19]} Rxe5 {[%emt 0:00:06]} 31. fxe5 {[%emt 0:00:03][%cal Bf4e5,Be5e6,Be6e7][%mdl 32] KR-KR} Rb6 {[%emt 0:01:21]} 32. e4 {[%emt 0:00:39]} Rb5 {[%emt 0:03:02]} (32... bxc3 33. bxc3 (33. exd5 $2 {loses.} cxb2 34. dxe6 Rxe6 $19) 33... dxe4+ 34. Kxe4 Kf7 35. Rd7+ (35. Rxc4 Kg6 $18) 35... Kg6) 33. exd5 {[%emt 0:00:41]} (33. Kf4 $142) 33... exd5 {[%emt 0:00:01]} 34. Rf4 {[%emt 0:01:51]} a4 {[%emt 0:01:00]} 35. e6 {[%emt 0:01:01] Intending e7 and mate.} a3 {[%emt 0:00:50]} 36. bxa3 {[%emt 0:01:04]} (36. e7 $142 Rb8 37. bxa3) 36... b3 {[%emt 0:00:30]} 37. axb3 {[%emt 0:00:06]} (37. e7 $142 Rb8 38. axb3 Re8 39. Rf8+ (39. bxc4 Rxe7 40. cxd5 Rd7 $18) 39... Rxf8+ 40. exf8=Q+ Kxf8 41. bxc4 Kg8 42. cxd5) 37... cxb3 {[%emt 0:00:02]} 38. e7 {[%emt 0:00:21][%cal Re7e8]} Rb8 {[%emt 0:00:01] [#]} 39. g6 $1 {[%emt 0:01:18] Weighted Error Value: White=0.18 (very precise) /Black=0.81.  Mistake:       	White=1     	Black=7      Inaccurate:     	White=1     	Black=1      OK:         	White=11    	Black=6      Best:        	White=2     	---        Strong:       	White=1     	---} 1-0

[Event "10th Iberoamericano-ch 2024"]
[Site "Linares"]
[Date "2024.10.01"]
[Round "9.5"]
[White "Vallejo Pons, Francisco"]
[Black "Oro, Faustino"]
[Result "1/2-1/2"]
[Annotator "TA"]
[ECO "C67"]
[WhiteElo "2653"]
[BlackElo "2434"]
[PlyCount "86"]
[EventDate "2024.09.25"]
[EventType "swiss"]
[EventCountry "ESP"]
[SourceTitle "playchess.com"]
[Source "ChessBase"]
[SourceQuality "1"]
[TimeControl "5400+30"]

{[%evp 18,86,18,12,26,0,6,0,0,0,0,0,8,0,0,0,17,14,18,26,31,0,6,0,39,34,27,25,33,0,6,0,0,0,31,31,27,27,27,27,27,27,27,27,27,27,27,27,27,27,27,27,27,27,21,21,22,8,8,8,8,8,8,0,0,0,0,0,8,0,0]} 1. e4 {[%emt 0:00:04]} e5 {[%emt 0:00:05]} 2. Nf3 {[%emt 0:00:07]} Nc6 {[%emt 0:00:05]} 3. Bb5 {[%emt 0:00:07]} Nf6 {[%emt 0:00:06][%cal Bg8f6,Bf6e4,Be4d6,Bd6f5,Bf5h4][%mdl 32]} 4. O-O {[%emt 0:04:26]} Nxe4 {[%emt 0:00:08]} 5. d4 {[%emt 0:00:22]} Nd6 {[%emt 0:00:08]} 6. Bxc6 {[%emt 0:00:10]} dxc6 {[%emt 0:00:14]} 7. dxe5 {[%emt 0:00:03]} Nf5 {[%emt 0:00:01]} 8. Qxd8+ {[%emt 0:00:13]} Kxd8 {[%emt 0:00:01]} 9. h3 {[%emt 0:00:48]} Ke8 {[%emt 0:04:03]} 10. Nc3 {[%emt 0:00:25]} h5 {[%emt 0:01:04]} 11. b3 {[%emt 0:11:31]} Be7 {[%emt 0:04:40]} 12. Bb2 {[%emt 0:06:24]} Nh4 {[%emt 0:03:28]} 13. Nd4 {[%emt 0:04:14]} Nf5 {[%emt 0:00:44]} 14. Nf3 {[%emt 0:00:11]} Be6 {[%emt 0:01:08]} 15. Ne2 {[%emt 0:09:55]} Rd8 {[%emt 0:04:17]} 16. Rad1 {[%emt 0:03:27]} c5 {[%emt 0:06:52]} 17. Nf4 {[%emt 0:03:54]} g5 {[%emt 0:02:56]} 18. Nxe6 {[%emt 0:06:23]} fxe6 {[%emt 0:00:55]} 19. g3 {[%emt 0:06:36][%cal Bg2g3,Bg3g4][%mdl 32]} Kf7 {[%emt 0:03:39]} 20. Kg2 {[%emt 0:00:26]} Kg6 {[%emt 0:01:46]} ({But not} 20... g4 $6 21. hxg4 hxg4 22. Nh2 $16) 21. g4 {[%emt 0:10:29]} Nh6 {[%emt 0:01:26]} 22. Kg3 {[%emt 0:01:33]} Rhf8 {[%emt 0:01:05]} 23. Bc1 {[%emt 0:01:16]} Nf7 {[%emt 0:01:05]} 24. c4 {[%emt 0:02:18]} b6 {[%emt 0:01:36]} 25. Bb2 {[%emt 0:04:38]} hxg4 {[%emt 0:03:53]} 26. hxg4 {[%emt 0:00:06]} Rh8 {[%emt 0:00:31]} 27. Ng1 $1 {[%emt 0:01:35]} Rxd1 {[%emt 0:03:48]} 28. Rxd1 {[%emt 0:00:01]} Rd8 {[%emt 0:00:09] Repels Rd7} 29. Rxd8 {[%emt 0:00:54]} Nxd8 $11 {[%emt 0:00:13][%mdl 4096] Endgame. KBN-KBN} 30. Kf3 {[%emt 0:01:36]} Nc6 {[%emt 0:00:33]} 31. Bc3 {[%emt 0:00:55]} a6 {[%emt 0:03:41]} 32. Ke4 {[%emt 0:00:29]} Bf8 {[%emt 0:04:58]} 33. Nh3 {[%emt 0:00:34]} Bh6 {[%emt 0:02:43]} 34. f3 {[%emt 0:00:17]} Nd8 {[%emt 0:02:54]} 35. Be1 {[%emt 0:01:22]} Nc6 {[%emt 0:03:05]} 36. Bd2 {[%emt 0:07:40] The position is equal.} Ne7 {[%emt 0:07:23]} 37. f4 {[%emt 0:00:51]} gxf4 {[%emt 0:00:11]} 38. Bxf4 {[%emt 0:00:33]} Bxf4 {[%emt 0:00:45]} 39. Nxf4+ {[%emt 0:01:10] KN-KN} Kf7 {[%emt 0:00:23]} 40. g5 {[%emt 0:04:13] [#] Kf3 is the strong threat.} Ng6 {[%emt 0:01:17]} 41. Ng2 {[%emt 0:01:52]} Nf8 {[%emt 0:01:36]} 42. Nf4 {[%emt 0:01:30]} Ng6 $1 {[%emt 0:00:13]} 43. Ng2 {[%emt 0:04:37]} Nf8 {[%emt 0:00:10] Weighted Error Value: White=0.05 (flawless) /Black=0.04 (flawless) .  Inaccurate:     	White=1     	Black=2      OK:         	White=11    	Black=13     Best:        	---       	Black=3      Strong:       	White=1     	Black=1} 1/2-1/2

[Event "10th Iberoamericano-ch 2024"]
[Site "Linares"]
[Date "2024.10.01"]
[Round "9.6"]
[White "Henriquez Villagra, Cristobal"]
[Black "Leiva, Gianmarco"]
[Result "1-0"]
[Annotator "TA"]
[ECO "A07"]
[WhiteElo "2604"]
[BlackElo "2374"]
[PlyCount "75"]
[EventDate "2024.09.25"]
[EventType "swiss"]
[EventCountry "ESP"]
[SourceTitle "playchess.com"]
[Source "ChessBase"]
[SourceQuality "1"]
[TimeControl "5400+30"]

{[%evp 9,75,19,17,14,15,11,28,10,34,26,34,36,37,19,9,17,26,18,14,14,54,51,53,0,2,11,0,3,18,-4,-14,0,5,7,33,27,31,38,27,31,29,20,145,108,101,108,160,160,162,159,164,150,150,149,951,915,1958,5236,4810,4922,5726,5097,5731,5520,4722,4718,2016,1787]} 1. Nf3 {[%emt 0:09:23]} d5 {[%emt 0:10:32]} 2. g3 {[%emt 0:00:06]} Bg4 {[%emt 0:00:08]} 3. Bg2 {[%emt 0:00:06]} c6 {[%emt 0:00:05]} 4. O-O {[%emt 0:00:14]} Nd7 {[%emt 0:00:38]} 5. d4 {[%emt 0:00:05]} e6 {[%emt 0:03:26]} 6. h3 {[%emt 0:00:30]} Bh5 {[%emt 0:09:36] [#]} 7. c4 $1 {[%emt 0:00:06]} Ngf6 {[%emt 0:10:31]} (7... Be7 8. Qb3) 8. cxd5 {[%emt 0:01:13] White has an edge.} cxd5 {[%emt 0:00:45]} 9. Nc3 {[%emt 0:00:31]} Be7 {[%emt 0:01:23]} 10. Qb3 {[%emt 0:04:02]} Qb6 {[%emt 0:01:19]} 11. Qxb6 {[%emt 0:00:47]} Nxb6 {[%emt 0:13:16]} 12. g4 {[%emt 0:02:54]} Bg6 {[%emt 0:00:23]} 13. Ne5 {[%emt 0:00:04]} Rc8 {[%emt 0:16:25]} 14. Bf4 {[%emt 0:09:20]} Nc4 {[%emt 0:00:58]} 15. Rfc1 {[%emt 0:08:52]} O-O {[%emt 0:04:50]} 16. b3 {[%emt 0:05:48]} ({Better is} 16. Nb5 $1 $14) 16... Nxe5 {[%emt 0:14:57]} 17. dxe5 {[%emt 0:00:16]} Nd7 {[%emt 0:00:02]} 18. Nb5 {[%emt 0:04:09] Repels Ba3} Bc5 {[%emt 0:00:43]} 19. a3 {[%emt 0:05:06]} Rc6 {[%emt 0:01:33]} 20. b4 $36 {[%emt 0:06:50][%mdl 2048] White has some pressure.} Bb6 {[%emt 0:00:55]} 21. a4 {[%emt 0:00:03] Black should prevent a5.} a5 {[%emt 0:03:47]} 22. bxa5 {[%emt 0:02:06]} Bxa5 {[%emt 0:00:02]} 23. Nd6 {[%emt 0:00:12]} Rb8 {[%emt 0:00:42]} 24. e4 {[%emt 0:01:39]} dxe4 {[%emt 0:03:09]} 25. h4 {[%emt 0:02:56][%cal Bh3h4,Bh4h5][%mdl 32] aiming for h5.} (25. Nxe4 {simplifies} Bxe4 26. Bxe4 Rxc1+ 27. Rxc1 Nb6 28. Rc5) 25... Bc3 {[%emt 0:02:21] [#]} (25... h6 $11) 26. h5 $1 {[%emt 0:02:45]} Bxa1 {[%emt 0:00:31]} (26... Nxe5 $2 27. Rxc3 (27. Nxe4 $2 Bxa1 28. Rxa1 Bxe4 $19) 27... Nf3+ 28. Bxf3 (28. Rxf3 exf3 29. Bxf3 Rc3 $18) 28... Rxc3 29. Bg2 $18 (29. Bxe4 Bxe4 30. Nxe4 Rc4 $18) (29. Nb5 exf3 30. Nxc3 Rc8 $18)) 27. Rxa1 {[%emt 0:00:05]} Nc5 {[%emt 0:00:31]} 28. hxg6 $16 {[%emt 0:03:12] White is more active.} hxg6 {[%emt 0:00:02]} 29. Nxe4 {[%emt 0:01:17]} ({Not} 29. Bxe4 Rxd6 30. exd6 Nxe4 $11) 29... Nxe4 {[%emt 0:00:46]} 30. Bxe4 {[%emt 0:00:03]} Rc4 {[%emt 0:00:08]} 31. f3 {[%emt 0:00:04]} b5 $2 {[%emt 0:00:07][%mdl 8192] This costs Black the game.} (31... Rb4 $16 32. a5 Rb2) 32. a5 $18 {[%emt 0:01:52][%cal Ba4a5,Ba5a6,Ba6a7][%mdl 32] White is clearly winning.} Ra4 {[%emt 0:00:06]} 33. Rxa4 {[%emt 0:00:04]} bxa4 {[%emt 0:00:02]} 34. a6 {[%emt 0:00:04]} a3 {[%emt 0:00:02]} 35. a7 {[%emt 0:00:35]} Ra8 {[%emt 0:02:38]} 36. Bxa8 {[%emt 0:00:05] Threatening mate with Be4.} a2 {[%emt 0:00:02]} 37. Be3 {[%emt 0:00:14] White threatens Bd4 and mate.} a1=Q+ {[%emt 0:00:04]} 38. Kg2 {[%emt 0:00:07] Weighted Error Value: White=0.07 (flawless) /Black=0.21 (precise) .  Loses game:     	---       	Black=1      Mistake:       	White=1     	Black=2      Inaccurate:     	---       	Black=3      OK:         	White=14    	Black=11     Best:        	White=1     	---} 1-0